[Event "Live Chess"]
[Site "Chess.com"]
[Date "2023.05.20"]
[Round "-"]
[White "alexlines8"]
[Black "Vladyslav2008"]
[Result "0-1"]
[WhiteElo "1248"]
[BlackElo "2194"]
[TimeControl "300"]
[EndTime "10:47:30 PDT"]
[Termination "Vladyslav2008 won by resignation"]

1. e4 {[%clk 0:04:58.9]} 1... c5 {[%clk 0:04:51.8]} 2. c3 {[%clk 0:04:56]} 2...
e6 {[%clk 0:04:48.7]} 3. d4 {[%clk 0:04:55.1]} 3... d5 {[%clk 0:04:46.4]} 4.
exd5 {[%clk 0:04:48.2]} 4... exd5 {[%clk 0:04:41.7]} 5. Nf3 {[%clk 0:04:47.4]}
5... Nf6 {[%clk 0:04:39.7]} 6. Bd3 {[%clk 0:04:34.7]} 6... Nc6 {[%clk
0:04:34.3]} 7. b3 {[%clk 0:04:22.6]} 7... cxd4 {[%clk 0:04:27.5]} 8. cxd4 {[%clk
0:04:20.1]} 8... Bb4+ {[%clk 0:04:25.9]} 9. Bd2 {[%clk 0:04:12.3]} 9... Qe7+
{[%clk 0:04:23.9]} 10. Qe2 {[%clk 0:04:02]} 10... O-O {[%clk 0:04:21.2]} 11.
Qxe7 {[%clk 0:03:57.9]} 11... Bxe7 {[%clk 0:04:11.9]} 12. O-O {[%clk 0:03:51]}
12... Bg4 {[%clk 0:04:10.2]} 13. Ne5 {[%clk 0:03:45.4]} 13... Nxd4 {[%clk
0:04:08.5]} 14. Nxg4 {[%clk 0:03:36.8]} 14... Nxg4 {[%clk 0:04:05.3]} 15. Nc3
{[%clk 0:03:30.2]} 15... Rfd8 {[%clk 0:03:54]} 16. Rfe1 {[%clk 0:03:20.1]} 16...
Bf6 {[%clk 0:03:51.6]} 17. Rac1 {[%clk 0:03:05]} 17... Rac8 {[%clk 0:03:44.4]}
18. Nxd5 {[%clk 0:02:45.5]} 18... Rxc1 {[%clk 0:03:42.1]} 19. Nxf6+ {[%clk
0:02:43.1]} 19... Nxf6 {[%clk 0:03:41.7]} 20. Rxc1 {[%clk 0:02:38.3]} 20... Nc6
{[%clk 0:03:41]} 21. Rc3 {[%clk 0:02:20.2]} 21... Nb4 {[%clk 0:03:24.1]} 22.
Bxh7+ {[%clk 0:02:00.6]} 22... Kxh7 {[%clk 0:03:14.7]} 23. Rh3+ {[%clk
0:01:54.3]} 23... Kg8 {[%clk 0:03:12.8]} 24. Bxb4 {[%clk 0:01:49.4]} 24... Rd1+
{[%clk 0:03:11.9]} 0-1

[Event "Live Chess"]
[Site "Chess.com"]
[Date "2023.05.20"]
[Round "-"]
[White "ZackirtyChess"]
[Black "BostonStrangler"]
[Result "1/2-1/2"]
[WhiteElo "1162"]
[BlackElo "2078"]
[TimeControl "300"]
[EndTime "10:47:32 PDT"]
[Termination "Game drawn - timeout vs insufficient material"]

1. e4 {[%clk 0:04:58.9]} 1... c5 {[%clk 0:04:58.2]} 2. Nf3 {[%clk 0:04:57]} 2...
g6 {[%clk 0:04:56.9]} 3. c3 {[%clk 0:04:55]} 3... Nc6 {[%clk 0:04:54.7]} 4. d4
{[%clk 0:04:53.5]} 4... cxd4 {[%clk 0:04:53.8]} 5. cxd4 {[%clk 0:04:52.9]} 5...
d5 {[%clk 0:04:53]} 6. Nc3 {[%clk 0:04:46.9]} 6... dxe4 {[%clk 0:04:51.5]} 7.
Nxe4 {[%clk 0:04:45.7]} 7... Bg7 {[%clk 0:04:50.7]} 8. d5 {[%clk 0:04:44.1]}
8... Nb8 {[%clk 0:04:40.5]} 9. Bf4 {[%clk 0:04:38.1]} 9... Nf6 {[%clk
0:04:38.2]} 10. Nxf6+ {[%clk 0:04:30.8]} 10... Bxf6 {[%clk 0:04:36.3]} 11. Bb5+
{[%clk 0:04:24.8]} 11... Bd7 {[%clk 0:04:33.2]} 12. Bxd7+ {[%clk 0:04:22.1]}
12... Nxd7 {[%clk 0:04:29.7]} 13. Qb3 {[%clk 0:04:18.3]} 13... Qa5+ {[%clk
0:04:14]} 14. Bd2 {[%clk 0:04:13.9]} 14... Qb6 {[%clk 0:04:12.8]} 15. O-O {[%clk
0:04:12.4]} 15... O-O {[%clk 0:04:05]} 16. Be3 {[%clk 0:04:08.8]} 16... Qxb3
{[%clk 0:03:59.3]} 17. axb3 {[%clk 0:04:08.7]} 17... a6 {[%clk 0:03:58.2]} 18.
Bd4 {[%clk 0:04:02.4]} 18... Bxd4 {[%clk 0:03:52.2]} 19. Nxd4 {[%clk 0:04:02.3]}
19... Nb6 {[%clk 0:03:51.1]} 20. Ra5 {[%clk 0:03:51.9]} 20... Rfd8 {[%clk
0:03:48.2]} 21. Re1 {[%clk 0:03:48.6]} 21... Rxd5 {[%clk 0:03:41.2]} 22. Rxd5
{[%clk 0:03:41.4]} 22... Nxd5 {[%clk 0:03:41.1]} 23. Rd1 {[%clk 0:03:38.1]}
23... e6 {[%clk 0:03:38.4]} 24. Kf1 {[%clk 0:03:34.2]} 24... Rc8 {[%clk
0:03:36.4]} 25. Ke2 {[%clk 0:03:32.2]} 25... Kg7 {[%clk 0:03:34.6]} 26. Kf3
{[%clk 0:03:29.2]} 26... h5 {[%clk 0:03:22.8]} 27. h4 {[%clk 0:03:20.8]} 27...
Nb4 {[%clk 0:03:06.9]} 28. g4 {[%clk 0:03:14.4]} 28... hxg4+ {[%clk 0:03:04.1]}
29. Kxg4 {[%clk 0:03:14.3]} 29... Nd5 {[%clk 0:02:55.6]} 30. f4 {[%clk
0:03:08.8]} 30... Nf6+ {[%clk 0:02:53.8]} 31. Kf3 {[%clk 0:03:05.8]} 31... Rh8
{[%clk 0:02:50.6]} 32. Rh1 {[%clk 0:03:04.1]} 32... Rh5 {[%clk 0:02:45.8]} 33.
Kg3 {[%clk 0:03:00]} 33... Ne4+ {[%clk 0:02:43.5]} 34. Kg4 {[%clk 0:02:58.5]}
34... f5+ {[%clk 0:02:34.4]} 35. Kh3 {[%clk 0:02:54.8]} 35... Kf6 {[%clk
0:02:29.8]} 36. Rg1 {[%clk 0:02:47.3]} 36... Nf2+ {[%clk 0:02:17.4]} 37. Kg3
{[%clk 0:02:44.6]} 37... Ne4+ {[%clk 0:02:09.3]} 38. Kh3 {[%clk 0:02:40.2]}
38... Rh8 {[%clk 0:02:05.6]} 39. Nf3 {[%clk 0:02:32]} 39... Nf2+ {[%clk
0:02:00.5]} 40. Kg3 {[%clk 0:02:27.2]} 40... Ne4+ {[%clk 0:01:58.6]} 41. Kh3
{[%clk 0:02:26.3]} 41... Rd8 {[%clk 0:01:53.7]} 42. Ne5 {[%clk 0:02:21.7]} 42...
Nf2+ {[%clk 0:01:48.8]} 43. Kg3 {[%clk 0:02:18.8]} 43... Ng4 {[%clk 0:01:31.9]}
44. Nxg4+ {[%clk 0:02:11.5]} 44... fxg4 {[%clk 0:01:31.1]} 45. Kxg4 {[%clk
0:02:08.9]} 45... Rd3 {[%clk 0:01:30.6]} 46. Re1 {[%clk 0:02:05.2]} 46... Rxb3
{[%clk 0:01:27.3]} 47. h5 {[%clk 0:01:57.7]} 47... gxh5+ {[%clk 0:01:25.3]} 48.
Kxh5 {[%clk 0:01:57.6]} 48... Rg3 {[%clk 0:01:20.3]} 49. Kh4 {[%clk 0:01:54.8]}
49... Rg2 {[%clk 0:01:19.3]} 50. Kh3 {[%clk 0:01:53.2]} 50... Rxb2 {[%clk
0:01:16.7]} 51. Kg4 {[%clk 0:01:50.4]} 51... a5 {[%clk 0:01:04.4]} 52. Ra1
{[%clk 0:01:44.8]} 52... Rb5 {[%clk 0:01:03.3]} 53. Kf3 {[%clk 0:01:43.2]} 53...
Kf5 {[%clk 0:00:56.8]} 54. Rf1 {[%clk 0:01:37.5]} 54... a4 {[%clk 0:00:51.1]}
55. Ke3 {[%clk 0:01:34.2]} 55... Rb4 {[%clk 0:00:47.6]} 56. Kd2 {[%clk
0:01:30.2]} 56... Rxf4 {[%clk 0:00:45.8]} 57. Ra1 {[%clk 0:01:28.4]} 57... b5
{[%clk 0:00:44.1]} 58. Kc3 {[%clk 0:01:26.7]} 58... Rc4+ {[%clk 0:00:42.7]} 59.
Kd3 {[%clk 0:01:23.2]} 59... e5 {[%clk 0:00:42]} 60. Rf1+ {[%clk 0:01:21.6]}
60... Ke6 {[%clk 0:00:41.3]} 61. Rb1 {[%clk 0:01:20.3]} 61... Rc5 {[%clk
0:00:37]} 62. Ke4 {[%clk 0:01:16.7]} 62... a3 {[%clk 0:00:34.8]} 63. Kd3 {[%clk
0:01:12.4]} 63... Kd5 {[%clk 0:00:27.4]} 64. Kd2 {[%clk 0:01:06.9]} 64... Kd4
{[%clk 0:00:24.3]} 65. Rb4+ {[%clk 0:01:02.6]} 65... Rc4 {[%clk 0:00:21.2]} 66.
Rxb5 {[%clk 0:01:00.3]} 66... Ra4 {[%clk 0:00:20]} 67. Rb1 {[%clk 0:00:59.2]}
67... a2 {[%clk 0:00:18.9]} 68. Ra1 {[%clk 0:00:58.5]} 68... e4 {[%clk
0:00:17.3]} 69. Ke2 {[%clk 0:00:57.7]} 69... Kc3 {[%clk 0:00:15.1]} 70. Kd1
{[%clk 0:00:54.8]} 70... Kb2 {[%clk 0:00:13.6]} 71. Rc1 {[%clk 0:00:53.3]} 71...
a1=Q {[%clk 0:00:12]} 72. Rxa1 {[%clk 0:00:51.8]} 72... Rxa1+ {[%clk 0:00:11]}
73. Kd2 {[%clk 0:00:50.7]} 73... Ra3 {[%clk 0:00:09.9]} 74. Ke2 {[%clk
0:00:49.7]} 74... e3 {[%clk 0:00:08.1]} 75. Kd1 {[%clk 0:00:48.6]} 75... Kc3
{[%clk 0:00:06.3]} 76. Ke1 {[%clk 0:00:48]} 76... Kd3 {[%clk 0:00:05.2]} 77. Kf1
{[%clk 0:00:46.2]} 77... e2+ {[%clk 0:00:04.3]} 78. Ke1 {[%clk 0:00:45.2]} 78...
Ra1+ {[%clk 0:00:03.1]} 79. Kf2 {[%clk 0:00:44.5]} 79... e1=Q+ {[%clk
0:00:02.4]} 80. Kf3 {[%clk 0:00:43.8]} 80... Qe3+ {[%clk 0:00:01.2]} 81. Kg2
{[%clk 0:00:42.9]} 1/2-1/2

[Event "Live Chess"]
[Site "Chess.com"]
[Date "2023.05.20"]
[Round "-"]
[White "PiotrD11"]
[Black "lucaskk818"]
[Result "0-1"]
[WhiteElo "1329"]
[BlackElo "1879"]
[TimeControl "300"]
[EndTime "10:47:37 PDT"]
[Termination "lucaskk818 won on time"]

1. e4 {[%clk 0:04:59.1]} 1... e6 {[%clk 0:04:57.5]} 2. d4 {[%clk 0:04:58.2]}
2... d5 {[%clk 0:04:55]} 3. e5 {[%clk 0:04:57.2]} 3... c5 {[%clk 0:04:53.1]} 4.
Nf3 {[%clk 0:04:56.9]} 4... Nc6 {[%clk 0:04:52.1]} 5. Bb5 {[%clk 0:04:56.5]}
5... Qb6 {[%clk 0:04:51.3]} 6. Bxc6+ {[%clk 0:04:54.6]} 6... bxc6 {[%clk
0:04:51.2]} 7. dxc5 {[%clk 0:04:53]} 7... Bxc5 {[%clk 0:04:49.2]} 8. O-O {[%clk
0:04:52.2]} 8... Ba6 {[%clk 0:04:38.1]} 9. Be3 {[%clk 0:04:34.2]} 9... Bxe3
{[%clk 0:04:29.2]} 10. fxe3 {[%clk 0:04:32.2]} 10... Qxe3+ {[%clk 0:04:29.1]}
11. Kh1 {[%clk 0:04:31]} 11... Bxf1 {[%clk 0:04:26.2]} 12. Qxf1 {[%clk
0:04:30.9]} 12... Rb8 {[%clk 0:04:21.4]} 13. b3 {[%clk 0:04:26.6]} 13... Ne7
{[%clk 0:04:16.5]} 14. Nbd2 {[%clk 0:04:22.6]} 14... Nf5 {[%clk 0:04:07]} 15. c4
{[%clk 0:04:15.2]} 15... h5 {[%clk 0:04:01.4]} 16. cxd5 {[%clk 0:04:10.5]} 16...
cxd5 {[%clk 0:04:01.3]} 17. Qa6 {[%clk 0:04:08.7]} 17... Qb6 {[%clk 0:03:53.4]}
18. Qa4+ {[%clk 0:04:06.4]} 18... Kf8 {[%clk 0:03:44.3]} 19. Rc1 {[%clk
0:04:00.3]} 19... h4 {[%clk 0:03:17.3]} 20. h3 {[%clk 0:03:58.6]} 20... Ng3+
{[%clk 0:02:47.3]} 21. Kh2 {[%clk 0:03:57.1]} 21... Ne4 {[%clk 0:02:20.7]} 22.
Nxe4 {[%clk 0:03:51]} 22... dxe4 {[%clk 0:02:20.6]} 23. Qxe4 {[%clk 0:03:50.2]}
23... Qb7 {[%clk 0:02:04.1]} 24. Qe1 {[%clk 0:03:28.8]} 24... Rc8 {[%clk
0:01:53.7]} 25. Rxc8+ {[%clk 0:03:11.6]} 25... Qxc8 {[%clk 0:01:53.6]} 26. Nxh4
{[%clk 0:03:10]} 26... Qc2 {[%clk 0:01:32.6]} 27. Qb4+ {[%clk 0:03:03.8]} 27...
Kg8 {[%clk 0:01:25.6]} 28. Qb8+ {[%clk 0:02:56.9]} 28... Kh7 {[%clk 0:01:23.4]}
29. Qxa7 {[%clk 0:02:48.5]} 29... Qf2 {[%clk 0:01:13.4]} 30. Qa4 {[%clk
0:02:40.6]} 30... g6 {[%clk 0:01:01.2]} 31. Nf3 {[%clk 0:02:31.8]} 31... Kg7
{[%clk 0:00:55.1]} 32. a3 {[%clk 0:02:19.8]} 32... Qe3 {[%clk 0:00:36.8]} 33.
Qb4 {[%clk 0:01:54.9]} 33... g5 {[%clk 0:00:35]} 34. a4 {[%clk 0:01:37.3]} 34...
Qf4+ {[%clk 0:00:22.8]} 35. Qxf4 {[%clk 0:00:51]} 35... gxf4 {[%clk 0:00:22.7]}
36. b4 {[%clk 0:00:49.5]} 36... Rb8 {[%clk 0:00:19.4]} 37. b5 {[%clk 0:00:46.5]}
37... Kg6 {[%clk 0:00:17]} 38. Nd4 {[%clk 0:00:45]} 38... Ra8 {[%clk 0:00:13.1]}
39. b6 {[%clk 0:00:16.7]} 39... Rxa4 {[%clk 0:00:12.2]} 40. Nc6 {[%clk
0:00:15.5]} 40... Ra1 {[%clk 0:00:10.2]} 41. b7 {[%clk 0:00:14.5]} 41... Rb1
{[%clk 0:00:09.4]} 42. b8=Q {[%clk 0:00:13.3]} 42... Rxb8 {[%clk 0:00:09]} 43.
Nxb8 {[%clk 0:00:12.9]} 43... Kf5 {[%clk 0:00:08.9]} 44. Nd7 {[%clk 0:00:10.9]}
44... Kg6 {[%clk 0:00:05.9]} 45. h4 {[%clk 0:00:09.7]} 45... Kh5 {[%clk
0:00:04.5]} 46. Kh3 {[%clk 0:00:09.2]} 46... Kg6 {[%clk 0:00:03.5]} 47. Nc5
{[%clk 0:00:07.8]} 47... Kf5 {[%clk 0:00:03.4]} 48. Nd7 {[%clk 0:00:06.9]} 48...
Kg6 {[%clk 0:00:02.6]} 49. g3 {[%clk 0:00:05]} 49... Kg7 {[%clk 0:00:02.5]} 50.
g4 {[%clk 0:00:04]} 50... Kg6 {[%clk 0:00:02.4]} 51. h5+ {[%clk 0:00:03.1]}
51... Kg5 {[%clk 0:00:01.9]} 52. Nc5 {[%clk 0:00:00.1]} 52... f3 {[%clk
0:00:01.4]} 0-1

[Event "Live Chess"]
[Site "Chess.com"]
[Date "2023.05.20"]
[Round "-"]
[White "mightysmasher"]
[Black "whitedjohn"]
[Result "1-0"]
[WhiteElo "2094"]
[BlackElo "1669"]
[TimeControl "300"]
[EndTime "10:47:38 PDT"]
[Termination "mightysmasher won by resignation"]

1. e4 {[%clk 0:04:58.1]} 1... Nf6 {[%clk 0:04:56.8]} 2. e5 {[%clk 0:04:56.8]}
2... Nd5 {[%clk 0:04:55.3]} 3. d4 {[%clk 0:04:56.1]} 3... d6 {[%clk 0:04:52.5]}
4. c4 {[%clk 0:04:55.2]} 4... Nb6 {[%clk 0:04:50.8]} 5. Nf3 {[%clk 0:04:54.4]}
5... Bg4 {[%clk 0:04:47.1]} 6. Be2 {[%clk 0:04:52.8]} 6... dxe5 {[%clk
0:04:44.7]} 7. dxe5 {[%clk 0:04:48.9]} 7... Qxd1+ {[%clk 0:04:39.3]} 8. Bxd1
{[%clk 0:04:47.9]} 8... Nc6 {[%clk 0:04:36.1]} 9. O-O {[%clk 0:04:46.3]} 9... e6
{[%clk 0:04:32.9]} 10. Bf4 {[%clk 0:04:42.7]} 10... Nxc4 {[%clk 0:04:25]} 11.
Nc3 {[%clk 0:04:39.6]} 11... Nxb2 {[%clk 0:04:20.1]} 12. Be2 {[%clk 0:04:36.7]}
12... O-O-O {[%clk 0:03:58]} 13. Rab1 {[%clk 0:04:33]} 13... Nd3 {[%clk
0:03:55.2]} 14. Bg3 {[%clk 0:04:26.4]} 14... Bxf3 {[%clk 0:03:45.9]} 15. Bxf3
{[%clk 0:04:24.5]} 15... Ndxe5 {[%clk 0:03:43.5]} 16. Bxe5 {[%clk 0:04:22.8]}
16... Nxe5 {[%clk 0:03:40]} 17. Bxb7+ {[%clk 0:04:21.4]} 17... Kd7 {[%clk
0:03:37.3]} 18. Nb5 {[%clk 0:04:19.4]} 18... Bd6 {[%clk 0:03:11.5]} 19. f4
{[%clk 0:04:11.3]} 19... Ng6 {[%clk 0:02:58.9]} 20. Kh1 {[%clk 0:04:07.5]} 20...
Rb8 {[%clk 0:02:53.5]} 21. Nxa7 {[%clk 0:04:01.9]} 21... Rhf8 {[%clk 0:02:37.9]}
22. Nc6 {[%clk 0:03:55.1]} 22... Rbe8 {[%clk 0:02:28.8]} 23. a4 {[%clk 0:03:53]}
23... Nxf4 {[%clk 0:02:25.1]} 24. Rfd1 {[%clk 0:03:47.2]} 24... Nd5 {[%clk
0:02:22.9]} 25. a5 {[%clk 0:03:45.5]} 25... Rb8 {[%clk 0:01:53.6]} 26. Nxb8+
{[%clk 0:03:41.6]} 26... Rxb8 {[%clk 0:01:51.5]} 27. a6 {[%clk 0:03:39.6]} 27...
Nb6 {[%clk 0:01:46.9]} 28. Rxb6 {[%clk 0:03:37]} 28... cxb6 {[%clk 0:01:44]} 29.
a7 {[%clk 0:03:35.8]} 29... Kc7 {[%clk 0:01:35.8]} 30. axb8=Q+ {[%clk
0:03:32.1]} 30... Kxb8 {[%clk 0:01:33]} 31. Rxd6 {[%clk 0:03:31.1]} 31... Kxb7
{[%clk 0:01:30.8]} 32. Rd7+ {[%clk 0:03:30.3]} 32... Kc6 {[%clk 0:01:29.1]} 33.
Rxf7 {[%clk 0:03:29.2]} 1-0

[Event "Live Chess"]
[Site "Chess.com"]
[Date "2023.05.20"]
[Round "-"]
[White "SaraTang"]
[Black "ClassyChameleon"]
[Result "0-1"]
[WhiteElo "164"]
[BlackElo "1060"]
[TimeControl "300"]
[EndTime "10:47:38 PDT"]
[Termination "ClassyChameleon won by resignation"]

1. e4 {[%clk 0:04:59.3]} 1... e5 {[%clk 0:04:59]} 2. Bb5 {[%clk 0:04:56.3]} 2...
Bc5 {[%clk 0:04:55]} 3. Bc4 {[%clk 0:04:55]} 3... Qf6 {[%clk 0:04:53.5]} 4. Qf3
{[%clk 0:04:54]} 4... Qxf3 {[%clk 0:04:48.6]} 5. gxf3 {[%clk 0:04:51.6]} 5...
Nf6 {[%clk 0:04:46.8]} 6. Nh3 {[%clk 0:04:46.3]} 6... O-O {[%clk 0:04:45.8]} 7.
O-O {[%clk 0:04:44.5]} 7... c6 {[%clk 0:04:43.7]} 8. Ng5 {[%clk 0:04:40.6]} 8...
d5 {[%clk 0:04:41.7]} 9. exd5 {[%clk 0:04:39.3]} 9... cxd5 {[%clk 0:04:39.4]}
10. Bb3 {[%clk 0:04:33.4]} 10... Nc6 {[%clk 0:04:20.7]} 11. c4 {[%clk
0:04:29.1]} 11... d4 {[%clk 0:04:16.6]} 12. Bc2 {[%clk 0:04:22.8]} 12... h6
{[%clk 0:04:10.7]} 13. Nh7 {[%clk 0:04:18.5]} 13... Nxh7 {[%clk 0:04:08.1]} 14.
Bxh7+ {[%clk 0:04:16.8]} 14... Kxh7 {[%clk 0:04:07.1]} 15. Re1 {[%clk
0:04:13.9]} 15... d3 {[%clk 0:04:02.7]} 16. Nc3 {[%clk 0:04:10.7]} 16... Bh3
{[%clk 0:03:59.5]} 17. Rxe5 {[%clk 0:04:08.3]} 17... Nxe5 {[%clk 0:03:58.2]} 0-1

[Event "Live Chess"]
[Site "Chess.com"]
[Date "2023.05.20"]
[Round "-"]
[White "MMmaaxxxx"]
[Black "McSlash1"]
[Result "1-0"]
[WhiteElo "2032"]
[BlackElo "2060"]
[TimeControl "300"]
[EndTime "10:47:55 PDT"]
[Termination "MMmaaxxxx won by resignation"]

1. e4 {[%clk 0:04:58.9]} 1... c5 {[%clk 0:04:59.6]} 2. a3 {[%clk 0:04:57.5]}
2... e6 {[%clk 0:04:58.4]} 3. b4 {[%clk 0:04:56.7]} 3... cxb4 {[%clk 0:04:58.3]}
4. axb4 {[%clk 0:04:56.6]} 4... Bxb4 {[%clk 0:04:58]} 5. c3 {[%clk 0:04:55.5]}
5... Be7 {[%clk 0:04:56.8]} 6. d4 {[%clk 0:04:54.2]} 6... d5 {[%clk 0:04:56]} 7.
e5 {[%clk 0:04:53.3]} 7... f6 {[%clk 0:04:54.5]} 8. Bd3 {[%clk 0:04:51.5]} 8...
g6 {[%clk 0:04:48.6]} 9. f4 {[%clk 0:04:47.6]} 9... Nc6 {[%clk 0:04:40.9]} 10.
Nf3 {[%clk 0:04:46.2]} 10... a5 {[%clk 0:04:37.4]} 11. O-O {[%clk 0:04:38.5]}
11... b6 {[%clk 0:04:34.1]} 12. Bb5 {[%clk 0:04:30.7]} 12... Qc7 {[%clk
0:04:30.7]} 13. Qa4 {[%clk 0:04:29.4]} 13... Bd7 {[%clk 0:04:28.8]} 14. exf6
{[%clk 0:04:16.6]} 14... Nxf6 {[%clk 0:04:27]} 15. Ne5 {[%clk 0:04:16.1]} 15...
Nxe5 {[%clk 0:04:25.4]} 16. fxe5 {[%clk 0:04:15.6]} 16... Bxb5 {[%clk
0:04:22.4]} 17. Qxb5+ {[%clk 0:04:15]} 17... Nd7 {[%clk 0:04:21.8]} 18. Bh6
{[%clk 0:04:10.3]} 18... Qc4 {[%clk 0:04:05.6]} 19. Qxc4 {[%clk 0:03:53]} 19...
dxc4 {[%clk 0:04:05.5]} 20. Nd2 {[%clk 0:03:52.3]} 20... Bf8 {[%clk 0:04:00]}
21. Bg5 {[%clk 0:03:50.2]} 21... Be7 {[%clk 0:03:54.3]} 22. Bxe7 {[%clk
0:03:49.3]} 22... Kxe7 {[%clk 0:03:54.2]} 23. Nxc4 {[%clk 0:03:48.7]} 23... Rhc8
{[%clk 0:03:49.5]} 24. Nd6 {[%clk 0:03:43.5]} 24... Rf8 {[%clk 0:03:38.6]} 25.
Rfb1 {[%clk 0:03:31.9]} 25... Rab8 {[%clk 0:03:35.8]} 26. Rb5 {[%clk 0:03:29.9]}
26... Kd8 {[%clk 0:03:26.9]} 27. Rab1 {[%clk 0:03:21.8]} 27... Kc7 {[%clk
0:03:26.1]} 28. Ne4 {[%clk 0:03:20.1]} 28... Rf4 {[%clk 0:03:22.2]} 29. Ng5
{[%clk 0:03:19.3]} 29... Nf8 {[%clk 0:03:18.2]} 30. g3 {[%clk 0:01:51.2]} 30...
Rf5 {[%clk 0:03:14.9]} 31. Ne4 {[%clk 0:01:48.9]} 31... Rf3 {[%clk 0:03:03.9]}
32. R1b3 {[%clk 0:01:34.4]} 32... Re3 {[%clk 0:02:56.6]} 33. Nd6 {[%clk
0:01:33.5]} 33... Nd7 {[%clk 0:02:53.2]} 34. Nc4 {[%clk 0:01:32.2]} 34... Rd3
{[%clk 0:02:50.4]} 35. Kf2 {[%clk 0:01:22.8]} 35... a4 {[%clk 0:02:49.3]} 36.
Ra3 {[%clk 0:01:20.6]} 36... Kc6 {[%clk 0:02:48.8]} 37. Nd6 {[%clk 0:01:17.1]}
37... Rd2+ {[%clk 0:02:30.6]} 38. Ke3 {[%clk 0:01:11]} 38... Rxh2 {[%clk
0:02:29.4]} 39. Rxa4 {[%clk 0:01:09.7]} 39... Kc7 {[%clk 0:02:08.1]} 40. Ra7+
{[%clk 0:01:07.6]} 40... Kd8 {[%clk 0:02:04.9]} 41. Ne4 {[%clk 0:00:55.7]} 41...
h5 {[%clk 0:01:48.5]} 42. Kf4 {[%clk 0:00:53.6]} 42... Rf2+ {[%clk 0:01:40.6]}
43. Nxf2 {[%clk 0:00:52.4]} 43... Rc8 {[%clk 0:01:34.5]} 44. Ne4 {[%clk
0:00:50.3]} 44... Nf8 {[%clk 0:01:32.5]} 45. Rxb6 {[%clk 0:00:49.4]} 45... Ke8
{[%clk 0:01:28.7]} 46. Nf6+ {[%clk 0:00:47.8]} 46... Kd8 {[%clk 0:01:26.4]} 47.
Rd6+ {[%clk 0:00:47.4]} 1-0

[Event "Live Chess"]
[Site "Chess.com"]
[Date "2023.05.20"]
[Round "-"]
[White "Hussamalhaidar"]
[Black "friarnator"]
[Result "0-1"]
[WhiteElo "1008"]
[BlackElo "1977"]
[TimeControl "300"]
[EndTime "10:48:01 PDT"]
[Termination "friarnator won by resignation"]

1. b3 {[%clk 0:04:57.3]} 1... Nf6 {[%clk 0:04:58.8]} 2. Bb2 {[%clk 0:04:56.4]}
2... g6 {[%clk 0:04:58.7]} 3. e3 {[%clk 0:04:53.2]} 3... Bg7 {[%clk 0:04:57.7]}
4. f4 {[%clk 0:04:50.2]} 4... O-O {[%clk 0:04:56.5]} 5. Nf3 {[%clk 0:04:49.4]}
5... d6 {[%clk 0:04:55.9]} 6. d3 {[%clk 0:04:47.1]} 6... c5 {[%clk 0:04:51.8]}
7. Nbd2 {[%clk 0:04:44.9]} 7... Nc6 {[%clk 0:04:50.3]} 8. Be2 {[%clk 0:04:41.4]}
8... Ng4 {[%clk 0:04:48.7]} 9. Bxg7 {[%clk 0:04:31.4]} 9... Nxe3 {[%clk
0:04:40]} 10. Qc1 {[%clk 0:04:21.5]} 10... Kxg7 {[%clk 0:04:38.3]} 11. Ne4
{[%clk 0:04:16.4]} 11... Nd4 {[%clk 0:04:30.7]} 12. Nxd4 {[%clk 0:04:01.1]}
12... cxd4 {[%clk 0:04:30.6]} 13. Qb2 {[%clk 0:03:57.4]} 13... e5 {[%clk
0:04:29]} 14. fxe5 {[%clk 0:03:53.8]} 14... dxe5 {[%clk 0:04:28.9]} 15. c3
{[%clk 0:03:46.7]} 15... Nxg2+ {[%clk 0:04:20.8]} 16. Kd2 {[%clk 0:03:41]} 16...
Ne3 {[%clk 0:04:16.6]} 17. cxd4 {[%clk 0:03:38.3]} 17... exd4 {[%clk 0:04:16.5]}
18. h4 {[%clk 0:03:25.7]} 18... Qa5+ {[%clk 0:04:14.1]} 19. b4 {[%clk 0:03:21]}
19... Qb6 {[%clk 0:04:08.6]} 20. Rh3 {[%clk 0:03:15.8]} 20... Bxh3 {[%clk
0:03:59.3]} 21. Rh1 {[%clk 0:03:12.7]} 21... Bg2 {[%clk 0:03:57.2]} 22. Rh2
{[%clk 0:03:10]} 22... Bxe4 {[%clk 0:03:56.3]} 23. dxe4 {[%clk 0:03:04.8]} 23...
a5 {[%clk 0:03:56.2]} 24. Rh3 {[%clk 0:03:02]} 24... Qxb4+ {[%clk 0:03:53.9]}
25. Kd3 {[%clk 0:02:51.9]} 25... Qxb2 {[%clk 0:03:44.6]} 0-1

[Event "Live Chess"]
[Site "Chess.com"]
[Date "2023.05.20"]
[Round "-"]
[White "luckywookie"]
[Black "GMHarry-youtube"]
[Result "0-1"]
[WhiteElo "729"]
[BlackElo "2152"]
[TimeControl "300"]
[EndTime "10:48:12 PDT"]
[Termination "GMHarry-youtube won by checkmate"]

1. e4 {[%clk 0:04:53.2]} 1... e5 {[%clk 0:04:58.7]} 2. c3 {[%clk 0:04:51.4]}
2... c5 {[%clk 0:04:57]} 3. d4 {[%clk 0:04:49.7]} 3... cxd4 {[%clk 0:04:56.9]}
4. cxd4 {[%clk 0:04:48.4]} 4... exd4 {[%clk 0:04:56.8]} 5. Nf3 {[%clk
0:04:47.3]} 5... Nc6 {[%clk 0:04:56.6]} 6. Bb5 {[%clk 0:04:43.6]} 6... Qa5+
{[%clk 0:04:54.9]} 7. Bd2 {[%clk 0:04:39.4]} 7... Qxb5 {[%clk 0:04:54.2]} 8. Qe2
{[%clk 0:04:33.4]} 8... Qxb2 {[%clk 0:04:52.3]} 9. O-O {[%clk 0:04:23.1]} 9...
Qxa1 {[%clk 0:04:51]} 10. Bb4 {[%clk 0:04:14]} 10... Bxb4 {[%clk 0:04:49.2]} 11.
Nbd2 {[%clk 0:04:08.3]} 11... Qxa2 {[%clk 0:04:47.6]} 12. Ne5 {[%clk 0:04:03.7]}
12... Nxe5 {[%clk 0:04:46.2]} 13. h3 {[%clk 0:03:50.3]} 13... Qxd2 {[%clk
0:04:43.2]} 14. Qxd2 {[%clk 0:03:44.1]} 14... Bxd2 {[%clk 0:04:43.1]} 15. Rd1
{[%clk 0:03:41.7]} 15... Bc3 {[%clk 0:04:41.8]} 16. f4 {[%clk 0:03:40.7]} 16...
Nc4 {[%clk 0:04:40.6]} 17. Rc1 {[%clk 0:03:37.6]} 17... Nf6 {[%clk 0:04:39.3]}
18. e5 {[%clk 0:03:34.8]} 18... Ne4 {[%clk 0:04:38.6]} 19. f5 {[%clk 0:03:33.6]}
19... d3 {[%clk 0:04:37.9]} 20. Rxc3 {[%clk 0:03:31]} 20... Nxc3 {[%clk
0:04:35.7]} 21. Kf1 {[%clk 0:03:30.9]} 21... d2 {[%clk 0:04:35.2]} 22. Kf2
{[%clk 0:03:27.2]} 22... d1=Q {[%clk 0:04:34.6]} 23. Kg3 {[%clk 0:03:24]} 23...
Qd3+ {[%clk 0:04:33.2]} 24. Kh2 {[%clk 0:03:22.6]} 24... Qe2 {[%clk 0:04:30.7]}
25. h4 {[%clk 0:03:20.5]} 25... Ne3 {[%clk 0:04:29.7]} 26. h5 {[%clk 0:03:18.7]}
26... Qxg2# {[%clk 0:04:29.5]} 0-1